Cogmind - Beta 13 @@@ ROGUE MODE // 2024.04.25 @ 19:21:05 Player: orthostice Result: Destroyed by L-31 Rogue with Katana Performance ------------- Evolutions (1) 500 Regions Visited (2) 400 Robots Destroyed (12) 60 Value Destroyed (331) 331 Prototype IDs (0) 0 Alien Tech Used (0) 0 Bonus (0) 0 TOTAL SCORE: 1291 Bonus ------- None Cogmind --------- Core Integrity 0/400 Matter 295/300 Energy 100/100 System Corruption 0% Temperature Cool (0) Movement Core (700) Ox13 Location -9/Materials Parts ------- > --- POWER (1) -------- (None) > --- PROPULSION (3) --- (None) > --- UTILITY (3) ------ Large Storage Unit Large Storage Unit > --- WEAPON (2) ------- (None) > --- INVENTORY (15) --- Light Ion Engine Light Treads Small Storage Unit Medium Storage Unit Medium Storage Unit Medium Matter Pod (99) Medium Matter Pod (0) Medium Matter Pod (0) Peak State ------------ > --- POWER ------------ Light Ion Engine > --- PROPULSION ------- Wheel Compact Wheel > --- UTILITY ---------- Large Storage Unit Large Storage Unit Hacking Suite > --- WEAPON ----------- Light Assault Rifle Light Assault Rifle > --- INVENTORY -------- Light Ion Engine Light Treads Light Treads Small Storage Unit Small Storage Unit Medium Storage Unit Medium Storage Unit Medium Matter Pod Medium Matter Pod Medium Matter Pod [Rating: 11] Favorites ----------- Power Light Ion Engine Engine Light Ion Engine Propulsion Wheel Treads Light Treads Wheel Wheel Utility Large Storage Unit Storage Large Storage Unit Processor Signal Interpreter Hackware Hacking Suite Weapon Light Assault Rifle Ballistic Gun Light Assault Rifle Build | -11 -10 -9 ------- Run | Yrd Mat Mat Slots Evolved 2 | . . 2 Power . | . . . Propulsion 1 | . . 1 Utility 1 | . . 1 Weapon . | . . . Parts Attached 23 | 4 9 10 Power 5 | 1 2 2 Engine 5 | 1 2 2 Core . | . . . Reactor . | . . . Propulsion 9 | 2 1 6 Treads 4 | . . 4 Leg . | . . . Wheel 5 | 2 1 2 Hover . | . . . Flight . | . . . Utility 6 | . 4 2 Device . | . . . Storage 4 | . 4 . Processor 1 | . . 1 Hackware 1 | . . 1 Protection . | . . . Artifact . | . . . Weapon 3 | 1 2 . Energy Gun . | . . . Energy Cannon . | . . . Ballistic Gun 3 | 1 2 . Ballistic Cannon . | . . . Launcher . | . . . Special Weapon . | . . . Impact Weapon . | . . . Slashing Weapon . | . . . Piercing Weapon . | . . . Special Melee Weapon . | . . . Unidentified Prototypes . | . . . Parts Lost 6 | . . 6 Power 2 | . . 2 Propulsion 1 | . . 1 Utility 1 | . . 1 Weapon 2 | . . 2 Highest Loss Streak 4 | . . 4 To Critical Strikes . | . . . Average Slot Usage (%) 80 | . 87 70 Engine 12 | . 14 9 Treads 3 | . . 7 Wheel 21 | . 28 12 Storage 19 | . 18 22 Ballistic Gun 21 | . 25 15 Naked Turns . | . . . Heaviest Build 46 | 4 45 46 Greatest Support 40 | 20 26 40 Greatest Overweight (x) 13 | . 1 13 Average Overweight (x) . | . . 1 Largest Inventory Capacity 15 | 5 15 15 Average Capacity 9 | 5 6 15 Most Carried 11 | . 8 11 Average Carried 4 | . 3 8 Final Capacity 15 | 5 15 15 Final Carried 8 | . 8 8 Class Distribution -------------------- 86% | Mutant 13% | Scavenger-Mutant Dominant Class ---------------- Mutant | -10/Materials Mutant | -9/Materials Resources | -11 -10 -9 ----------- Run | Yrd Mat Mat Matter Collected 583 | 243 106 234 Remotely . | . . . Salvage Created 493 | 36 119 338 Parts 30 | 1 7 22 Haulers Intercepted . | . . . Recyclers Shooed . | . . . Parts Field Recycled . | . . . Retrieved Matter . | . . . Parts Self-Destructed . | . . . Prevented . | . . . Kills | -11 -10 -9 ------- Run | Yrd Mat Mat Combat Hostiles Destroyed 9 | 1 4 4 Guns 9 | 1 4 4 Classes Destroyed 6 | 1 1 4 Recycler 1 | . . 1 Operator 1 | . . 1 Watcher 1 | . . 1 Swarmer 2 | . 2 . Grunt 5 | 1 2 2 Sentry 2 | . . 2 Best Kill Streak 3 | 1 2 3 Combat Bots Only 3 | 1 2 3 Max Kills in Single Turn 2 | 1 1 2 Gunslinging . | . . . Exploded . | . . . Melee . | . . . Uniques/NPCs Destroyed . | . . . Combat | -11 -10 -9 -------- Run | Yrd Mat Mat Hostile Shots Fired 147 | 3 42 102 Missed 48 | 1 15 32 Damage Taken 1375 | 23 315 1037 Core 573 | 12 139 422 Absorbed by Shields . | . . . Core Remaining (%) 67 | 95 39 . Volleys Fired 57 | 3 26 28 Largest 2 | 1 2 2 Hottest 40 | 20 40 40 Shots Fired 89 | 3 45 41 Gun 89 | 3 45 41 Cannon . | . . . Launcher . | . . . Special . | . . . Kinetic 89 | 3 45 41 Thermal . | . . . Explosive . | . . . Electromagnetic . | . . . Robot Hit Streak 12 | 1 6 12 Robot Miss Streak 3 | 1 3 3 Penetration Max . | . . . Secondary Targets . | . . . Shots Hit Robots 59 | 2 27 30 Core Hits 27 | 2 10 15 Critical Kills 2 | . . 2 Critical Parts Destroyed . | . . . Critical Strikes 2 | . . 2 Destroy 2 | . . 2 Melee Attacks . | . . . Impact . | . . . Slashing . | . . . Piercing . | . . . Sneak Attacks . | . . . Combat Hostiles . | . . . Follow-up Attacks . | . . . Damage Inflicted 508 | 17 222 269 Guns 508 | 17 222 269 Cannons . | . . . Explosions . | . . . Melee . | . . . Ramming . | . . . Kinetic 508 | 17 222 269 Thermal . | . . . Explosive . | . . . Electromagnetic . | . . . Impact . | . . . Slashing . | . . . Piercing . | . . . Highest Corruption . | . . . Average Corruption . | . . . Corruption Purged . | . . . Corruption Blocked . | . . . Overload Shots . | . . . Overflow Damage . | . . . Projectiles . | . . . Explosions . | . . . Melee . | . . . Knockbacks . | . . . Impact . | . . . Kinetic . | . . . Secondary . | . . . Self-Inflicted Damage . | . . . Shots . | . . . Rammed . | . . . Targets Rammed . | . . . Kicked . | . . . Crushed . | . . . Highest Temperature 25 | 6 25 9 Average Temperature 8 | 6 11 4 Received Heat Transfer 459 | 12 123 324 Siege Activations . | . . . Robots Corrupted . | . . . Combat Hostiles . | . . . Parts Fried . | . . . Impact Corruptions . | . . . Robots Melted . | . . . Combat Hostiles . | . . . Parts Melted . | . . . Heat Transferred . | . . . Parts Sabotaged . | . . . Parts Stolen . | . . . Parts Stripped . | . . . Power Chain Reactions . | . . . Alert | -11 -10 -9 ------- Run | Yrd Mat Mat Peak Influence 180 | 20 115 180 Initial 48 | . 13 48 Average 91 | 8 82 135 Maximum Alert Level . | . . . Low Security (%) 100 | 100 100 100 Level 1 . | . . . Level 2 . | . . . Level 3 . | . . . Level 4 . | . . . Level 5 . | . . . High Security . | . . . Max Security . | . . . Squads Dispatched 1 | . . 1 Investigation . | . . . Extermination . | . . . Reinforcement 1 | . . 1 Assault . | . . . Garrison . | . . . Intercept . | . . . Searches Triggered . | . . . Construction Impeded . | . . . Haulers Reinforced . | . . . Active Scanning Responses . | . . . Cargo Convoy Interrupts . | . . . Stealth | -11 -10 -9 --------- Run | Yrd Mat Mat Distress Signals 2 | . 1 1 Communications Jammed . | . . . Distress Signals . | . . . Times Spotted 22 | 1 9 12 Peak Tracking Total 5 | 1 4 5 Tactical Retreats . | . . . Traps | -11 -10 -9 ------- Run | Yrd Mat Mat Traps Triggered 2 | . 2 . Indirectly . | . . . Trap Hack Attempts . | . . . Triggered . | . . . Disarmed . | . . . Reprogrammed . | . . . Reused . | . . . Traps Extracted . | . . . Installed . | . . . Triggered . | . . . Machines | -11 -10 -9 ---------- Run | Yrd Mat Mat Machines Disabled . | . . . Max in Single Turn . | . . . Machines Repaired . | . . . Machines Dismantled . | . . . Machines Sabotaged . | . . . Overloaded Fab Kills . | . . . Hacking | -11 -10 -9 --------- Run | Yrd Mat Mat Machines Accessed 3 | . 2 1 Terminals 2 | . 1 1 Fabricators . | . . . Repair Stations . | . . . Recycling Units 1 | . 1 . Scanalyzers . | . . . Garrison Access . | . . . Total Hacks 6 | . 5 1 Successful 5 | . 4 1 Failed 1 | . 1 . Catastrophic . | . . . Database Lockouts . | . . . Manual . | . . . Terminals 3 | . 2 1 Fabricators . | . . . Repair Stations . | . . . Recycling Units 3 | . 3 . Scanalyzers . | . . . Garrison Access . | . . . Terminal Hacks 2 | . 1 1 Record 1 | . 1 . Alert Level 1 | . . 1 Fabricator Hacks . | . . . Repair Station Hacks . | . . . Recycling Unit Hacks 3 | . 3 . Recycle Component 2 | . 2 . Process 1 | . 1 . Scanalyzer . | . . . Garrison Access Hacks . | . . . Unauthorized Hacks . | . . . Terminals . | . . . Fabricators . | . . . Repair Stations . | . . . Recycling Units . | . . . Scanalyzers . | . . . Garrison Access . | . . . Data Cores Recovered . | . . . Used . | . . . Hacking Detections 2 | . 2 . Full Trace Events . | . . . Feedback Events . | . . . Feedback Blocked . | . . . Robot Schematics Acquired . | . . . Robots Built . | . . . Authchips . | . . . Time . | . . . Total Robot Build Rating . | . . . Part Schematics Acquired . | . . . Parts Built . | . . . Authchips . | . . . Time . | . . . Total Part Build Rating . | . . . Parts Repaired . | . . . Time . | . . . Parts Recycled 2 | . 2 . Recycled Matter 14 | . 14 . Retrieved Matter . | . . . Retrieved Components . | . . . Parts Scanalyzed . | . . . Part Schematics Acquired . | . . . Parts Damaged . | . . . Bothacking | -11 -10 -9 ------------ Run | Yrd Mat Mat Used RIF Installer . | . . . Robots Hacked . | . . . Non-combat . | . . . Combat . | . . . Robot Hacks Applied . | . . . Relay Couplers Released . | . . . Fabnet Peak Effective % . | . . . Robots Rewired . | . . . Allies Hacked . | . . . Hacks Repelled . | . . . Allies | -11 -10 -9 -------- Run | Yrd Mat Mat Total Allies . | . . . Largest Group . | . . . Highest-Rated Group . | . . . Highest-Rated Ally . | . . . Total Orders . | . . . Ally Attacks . | . . . Total Damage . | . . . Kills . | . . . Allies Corrupted . | . . . Allies Melted . | . . . Intel | -11 -10 -9 ------- Run | Yrd Mat Mat Robot Analysis Total . | . . . Derelict Logs Recovered . | . . . Drone Launches . | . . . Drone Recoveries . | . . . Exploration | -11 -10 -9 ------------- Run | Yrd Mat Mat Turns Passed 662 | 93 322 247 Spaces Moved 453 | 68 276 109 Core 24 | 20 1 3 Treads 28 | . . 28 Legs . | . . . Wheels 401 | 48 275 78 Hover . | . . . Flight . | . . . Fastest Speed 50 | 50 80 105 Average Speed 101 | 71 86 157 Slowest Speed 700 | 80 105 700 Overloaded Moves . | . . . Propulsion Burnouts . | . . . Robots Hopped . | . . . Cave-ins Triggered . | . . . Exploration Rate (%) 24 | 10 44 18 Regions Visited 2 Branch Regions . Pre-discovered Areas . | . . . Known Exits Taken . | . . . Unknown Exits Taken 2 | 1 1 . Scrap Searched . | . . . Spaces Dug . | . . . Terrain Destroyed . | . . . Melee . | . . . Projectile . | . . . AOE . | . . . Terrain Rammed . | . . . Walls Destroyed . | . . . Machines Disabled . | . . . Actions | -11 -10 -9 --------- Run | Yrd Mat Mat Total 584 | 107 320 157 Wait 34 | 33 . 1 Move 451 | 67 275 109 Hop . | . . . Pick Up 12 | . 10 2 Fast Attach 10 | 4 3 3 Attach 8 | . 2 6 Detach 5 | . . 5 Swap 5 | . 4 1 Drop 2 | . . 2 Fire 57 | 3 26 28 Melee . | . . . Ram . | . . . Kick . | . . . Crush . | . . . Escape Stasis . | . . . Rewire . | . . . Trap . | . . . Miscellaneous . | . . . Route ------- -11/Scrapyard -10/Materials (discovered 3 exits: *Mat / [*Min x2]) -9/Materials History --------- Turn | Location | Event 2 | -11/Scrapyard | Met Revision 17 45 | -11/Scrapyard | Discovered new exit (range 8) 94 | -11/Scrapyard | Entered Materials 96 | -10/Materials | Discovered new exit (range 12) 188 | -10/Materials | Discovered new exit (range 12) 279 | -10/Materials | Core integrity fell below 50% 325 | -10/Materials | Discovered new exit (range 3) 327 | -10/Materials | Build established: Mutant 416 | -10/Materials | Entered another Materials area 416 | -9/Materials | Evolved 2 slots: Propulsion x1, Utility x1 586 | -9/Materials | Lost 4 parts (1p1n1u1w) 645 | -9/Materials | Core integrity fell below 50% 658 | -9/Materials | Core integrity fell below 20% 663 | -9/Materials | Destroyed by L-31 Rogue with Katana Last Messages --------------- K-01 Serf collects debris. Hacking Suite destroyed. Wheel destroyed. Y-45 Defender destroyed. Lgt. Ion Engine destroyed. G-34 Mercenary destroyed. K-01 Serf collects debris. G-34 Mercenary destroyed. K-01 Serf collects debris. Acquired Lgt. Treads. K-01 Serf collects debris. Dropped Com. Wheel. K-01 Serf collects debris. Acquired 36 matter. K-01 Serf collects debris. K-01 Serf cleans the Terminal. K-01 Serf collects debris. Lgt. Treads severed. Ion Engine destroyed. Lgt. Assault Rifle destroyed. Map ----- +----------------------------------------------------+ | ???????? # !# # #????????????????? | | ???????? / "T" # * # # #????????????????? | | ????????# ####### # # #????????????????? | | ????????##??????# + # +????????????????? | | ?????## ######### !# # #????????????????? | | ?????# ## * # # ?????????????????? | | ?????# ]]! """ ## =#########? ??????????????????? | | ?????# ]!= """ # ####### ?????????????????? | | ?????# ]!= """ # ????????????????? | | ?????# +! T ????????????????? | | ?????# ^ #%[ ????????????????? | | ?????# #= ####### #???????????????? | | ?????# ! ## !=##???????? ##????????????????? | | ?????############=!%#????????????????????????????? | | ????????????????# !=#????????????????????????????? | | ????????????????# [=#????????????????????????????? | | ????????????????# [ #????????????????????????????? | | ????????????????# #????????????????????????????? | | ????????????????# #????????????????????????????? | | ????????????????# #????????????????????????????? | | ????????????????# #????????????????????????????? | | ????????????????# #????????????????????????????? | | ????????????????# #????????????????????????????? | | ????????????????# ########+##??????????????????? | | ????????????????# #??????????????????? | | ????????????????# g@ #??????????????????? | | ????????????????# gtl #??????????????????? | | ????????#/#######a gg=""" #??????????????????? | | ??? """"" #??????????????????? | | ??? """"" #??????????????????? | | ??? """"" #??????????????????? | | ????#####/##### """ #??????????????????? | | ??????????????# a#??????????????????? | | ??????????????+ ? ??????????????????? | | ??????????????######## ??????????????????? | | ?????????????????????###########?????????????????? | | ?????????????????????????????????????????????????? | | ?????????????????????????????????????????????????? | | ?????????????????????????????????????????????????? | | ?????????????????????????????????????????????????? | | ?????????????????????????????????????????????????? | | ?????????????????????????????????????????????????? | | ?????????????????????????????????????????????????? | | ?????????????????????????????????????????????????? | | ?????????????????????????????????????????????????? | | | | | | | | | | | +----------------------------------------------------+ Best States ------------- Heat Dissipation 28 Energy Generation 10 Energy Capacity 250 Matter Stores 321 Matter Capacity 500 Sight Range 16 Terrain Scan Density 10 Evasion (%) 50 Recoil Reduction 2 Offensive Hacking 10 Item Schematics ----------------- None Robot Schematics ------------------ None Fabricated ------------ Nothing Alien Tech Used ----------------- None Achievements -------------- None Challenges ------------ None Game ------ Seed ImprovedBehemothShredder Manual? 0 Play Time 00:16:33 Cumulative 2.0 hours Start 2024.04.25 @ 18:57:11 End 2024.04.25 @ 19:21:05 Sessions 1 Manual Loads 0 Difficulty Rogue Special Mode None Game No. 3 Rogue 3 Adventurer 0 Explorer 0 Win Type - Total 0 Types 0/0/0/0/0/0/0/0/0 Lore% 1 Gallery% 5 Achievement% 6 Wizard Run 0 Options --------- Layout 1 ASCII 0 Keyboard 0 Movement Vi Keybinds 0 Fullscreen 1 Font 32/SmallcapsGlow Map View 50x35 Zoom Use 0% Tactical HUD 0 Map Filters NONE Filters NONE Steam 1 RUN: 530f0cc0-40e4-4e50-8b87-b7ab68817d31